bitfinex/quotes_ETHUSD_20241129
["timestamp","ask_amount","ask_price","bid_price","bid_amount"]
[1732901181811,0.57027861,3590.3,3590.2,0.67625716]
[1732901181967,2.78467,3591.1,3590.2,0.67625716]
[1732901182170,2.78474,3591.0,3590.3,0.26005576]
[1732901182405,2.78445,3591.4,3590.4,0.26005576]
[1732901182616,2.7846,3591.2,3590.5,1.54601072]
[1732901182920,3.67697,3591.6,3590.5,1.2859]
[1732901183219,3.67697,3591.6,3590.6,0.26010869]
[1732901183220,0.55032164,3590.8,3590.6,0.26010869]
[1732901183379,0.55032164,3590.8,3590.2,1.298]
[1732901183587,0.55032164,3590.8,3590.3,0.82593448]
[1732901183784,0.55032164,3590.8,3590.4,0.67614873]
[1732901183981,0.55032164,3590.8,3590.5,0.2600572]
[1732901184310,0.55032164,3590.8,3590.6,0.2600572]
[1732901184471,0.55032164,3590.8,3590.7,0.2600572]
[1732901184873,0.55032164,3590.8,3590.7,0.25999183]
[1732901185311,0.55032164,3590.8,3590.3,0.14978575]
[1732901185570,0.55032164,3590.8,3590.4,0.67584212]
[1732901185778,0.55032164,3590.8,3590.5,0.25993928]
[1732901186015,2.78498,3590.7,3590.5,0.25993928]
[1732901186271,2.78514,3590.5,3589.9,1.3433]
[1732901186576,2.78514,3590.5,3590.0,0.2599596]
[1732901186776,2.78514,3590.5,3589.9,1.3433]
[1732901186980,2.78521,3590.4,3590.0,0.25996755]
[1732901187185,2.78521,3590.4,3589.9,1.3433]
[1732901187382,2.7851,3590.6,3590.0,0.25998195]
[1732901187605,2.78499,3590.7,3589.9,1.3433]
[1732901188019,2.78499,3590.7,3590.0,0.2599602]
[1732901188318,0.8927,3590.9,3589.9,1.3433]
[1732901188624,2.78519,3590.5,3589.9,1.3433]
[1732901188930,0.56606086,3590.1,3589.4,1.86441165]
[1732901189085,0.56606086,3590.1,3589.5,0.18644117]
[1732901189293,0.56606086,3590.1,3589.5,0.86233254]
[1732901189503,0.56606086,3590.1,3589.6,0.67589137]
[1732901189703,0.56606086,3590.1,3589.7,0.28781179]
[1732901189902,0.56606086,3590.1,3589.8,0.25995822]
[1732901190118,3.67754,3590.9,3590.0,1.3804]
[1732901190271,3.67754,3590.9,3590.1,0.42399404]
[1732901190475,2.78474,3591.0,3590.2,0.25992539]
[1732901190711,0.5559178,3590.3,3590.1,0.16403582]
[1732901191024,0.5559178,3590.3,3590.2,0.2599104]
[1732901191622,0.5559178,3590.3,3589.6,1.3685]
[1732901191916,0.5559178,3590.3,3589.7,0.25991877]
[1732901192075,0.5559178,3590.3,3589.8,0.25991877]
[1732901192282,0.5559178,3590.3,3589.9,0.25991877]
[1732901192624,0.04464239,3590.2,3589.6,1.52399412]
[1732901192810,0.04464239,3590.2,3589.7,0.2598897]
[1732901193015,0.04464239,3590.2,3589.8,0.4569222]
[1732901193323,0.5559178,3590.3,3589.6,1.52399412]
[1732901193529,2.83006333,3590.1,3589.7,0.25989603]
[1732901193683,2.83006333,3590.1,3589.6,1.3685]
[1732901193684,2.78549,3590.1,3589.6,1.3685]
[1732901193895,0.04448927,3590.0,3589.3,1.2744]
[1732901194085,2.78589,3589.6,3588.9,1.2744]
[1732901194311,2.78589,3589.6,3589.0,0.25994823]
[1732901194483,0.04425612,3589.5,3589.1,0.25994823]
[1732901194702,0.04425612,3589.5,3588.9,1.2744]
[1732901195329,0.04425612,3589.5,3588.6,1.3071]
[1732901195330,0.93695612,3589.5,3588.6,1.3071]
[1732901195628,0.55614859,3589.0,3587.9,4.09419]
[1732901195948,0.04384444,3588.9,3588.0,1.96406226]
[1732901196243,0.04384444,3588.9,3588.1,3.49088009]
[1732901196458,0.04384444,3588.9,3588.2,0.67603734]
[1732901196635,0.04384444,3588.9,3588.3,0.67603734]
[1732901196804,0.04384444,3588.9,3588.4,1.02512535]
[1732901197004,0.04384444,3588.9,3588.5,0.26001436]
[1732901197242,0.04384444,3588.9,3588.6,1.65411436]
[1732901197450,0.04384444,3588.9,3588.7,0.26001436]
[1732901197612,0.04384444,3588.9,3588.8,0.26001436]
[1732901197809,2.78559,3589.9,3588.8,0.28787349]
[1732901198133,2.78582,3589.7,3588.9,0.46980245]
[1732901198448,0.564956,3589.4,3589.1,1.3135]
[1732901198652,0.564956,3589.4,3589.2,0.02785853]
[1732901198939,0.04402512,3589.3,3589.2,0.0278587]
[1732901199343,0.04402512,3589.3,3589.2,0.25991136]
[1732901199510,0.564956,3589.4,3589.2,0.17831994]
[1732901199711,0.04402512,3589.3,3589.2,0.17831994]
[1732901201327,0.04402512,3589.3,3589.1,1.3135]
[1732901201844,0.04402512,3589.3,3588.6,1.3756]
[1732901202925,2.78621,3589.1,3588.6,1.3756]
[1732901203130,0.04384628,3589.2,3588.6,1.3756]
[1732901203448,0.04364694,3589.0,3588.7,0.02786051]
[1732901203664,0.564956,3589.4,3588.9,1.2673]
[1732901203665,0.04363936,3589.1,3588.9,1.2673]
[1732901203812,0.564956,3589.4,3588.9,1.2673]
[1732901204248,0.04371813,3589.3,3588.9,1.2673]
[1732901209045,2.82982813,3589.3,3588.9,1.2673]
[1732901209231,0.04371813,3589.3,3588.2,4.3948]
[1732901209413,2.82977813,3589.3,3588.3,1.23913863]
[1732901209623,2.82977813,3589.3,3588.3,0.82286061]
[1732901210951,2.78614,3589.2,3588.3,0.82286061]
[1732901211163,0.0428405,3589.1,3588.3,0.82286061]
[1732901211456,2.7863,3589.0,3588.3,0.82286061]
[1732901211665,2.7863,3589.0,3588.4,0.22176606]
[1732901211888,0.04267874,3588.9,3588.4,0.22176606]
[1732901212319,3.66885,3589.6,3588.5,1.3062]
[1732901212521,2.7862,3589.2,3588.5,1.3062]
[1732901212716,0.04277686,3589.1,3588.5,1.3062]
[1732901212960,0.04277686,3589.1,3588.6,0.15279661]
[1732901213168,2.786,3589.4,3588.6,0.15279661]
[1732901213319,0.04272732,3589.3,3588.6,0.15279661]
[1732901213760,0.5596031,3588.9,3588.6,0.15279661]
[1732901213932,0.04244696,3588.8,3588.6,0.15279661]
[1732901214128,0.04244696,3588.8,3588.7,0.42456566]
[1732901214350,0.04244696,3588.8,3588.7,0.41594389]
[1732901214521,2.78591,3589.5,3588.7,0.41594389]
[1732901214728,0.04281019,3589.4,3588.7,0.41594389]
[1732901215164,0.568439,3589.1,3588.7,0.41594389]
[1732901215363,2.78582,3589.6,3588.8,1.2941]
[1732901215573,2.88459,3591.2,3589.0,1.2941]
[1732901215574,0.0429219,3589.5,3589.0,1.2941]
[1732901215859,2.78551,3590.0,3589.2,1.2872]
[1732901216070,0.56375636,3589.6,3589.2,1.2872]
[1732901216426,0.04179264,3589.5,3589.3,0.02785774]
[1732901216658,0.04179264,3589.5,3589.2,1.2872]
[1732901217366,0.04179264,3589.5,3589.4,2.78598]
[1732901217661,2.7849,3590.8,3589.5,1.3843]
[1732901217867,2.7849,3590.8,3589.5,4.17019]
[1732901217868,2.78511,3590.6,3589.5,4.17019]
[1732901218072,2.78511,3590.6,3589.5,1.3843]
[1732901218220,0.03969262,3590.5,3589.5,1.3843]
[1732901218426,0.03969262,3590.5,3589.5,4.1702]
[1732901218766,0.55578472,3590.1,3589.6,0.74794338]
[1732901219329,0.55578472,3590.1,3589.5,1.3843]
[1732901219330,0.03823835,3590.0,3589.5,1.3843]
[1732901219529,0.03823835,3590.0,3589.6,2.78582]
[1732901219765,0.03823835,3590.0,3589.7,4.3137]
[1732901219970,2.78498,3590.7,3589.7,4.3137]
[1732901220175,2.78519,3590.5,3589.7,1.3137]
[1732901220484,2.78529,3590.3,3589.7,1.3137]
[1732901220634,2.78565,3589.9,3589.1,1.3962]
[1732901220832,2.78552,3590.0,3589.1,1.3962]
[1732901221039,0.03818659,3589.8,3589.1,4.21019428]
[1732901221277,0.03824262,3589.9,3589.2,1.3962]
[1732901221572,2.78542,3590.2,3589.3,0.47151943]
[1732901221573,0.03818962,3589.8,3589.3,0.47151943]
[1732901221786,0.54915098,3590.4,3589.2,1.3962]
[1732901222084,2.78536,3590.2,3589.2,1.42405278]
[1732901222383,2.78561,3589.9,3589.2,1.3962]
[1732901222591,2.78577,3589.7,3589.2,1.3962]
[1732901222749,0.03807755,3589.6,3589.2,1.3962]
[1732901222951,2.78559,3589.9,3589.2,1.3962]
[1732901223253,0.03818962,3589.8,3589.2,1.91417545]
[1732901223460,0.03818962,3589.8,3589.3,1.2627]
[1732901223661,2.78544,3590.1,3589.3,1.2627]
[1732901223864,0.03810542,3589.7,3589.3,1.2627]
[1732901224076,2.78543,3590.2,3589.3,1.26328711]
[1732901224384,0.59334476,3590.1,3589.3,1.23543369]
[1732901224687,0.59334476,3590.1,3589.3,5.03990241]
[1732901225038,3.37879476,3590.1,3589.3,5.03990241]
[1732901225238,0.59334476,3590.1,3589.3,5.03990241]
[1732901226138,3.37878476,3590.1,3589.3,2.03990241]
[1732901226502,3.37878476,3590.1,3589.5,0.505]
[1732901226995,0.59334476,3590.1,3589.5,0.76227563]
[1732901227177,0.03832954,3590.1,3589.6,1.3786]
[1732901227379,2.78525,3590.4,3589.6,1.3786]
[1732901227696,2.82363189,3590.3,3589.6,1.3786]
[1732901228299,0.03828189,3590.3,3589.6,1.3786]
[1732901228648,0.56267067,3590.3,3589.6,1.83672502]
[1732901228898,0.03838557,3590.2,3589.6,4.62247502]
[1732901229103,0.03838557,3590.2,3589.6,1.83672502]
[1732901229389,2.78512,3590.5,3589.6,1.83672502]
[1732901229558,2.82295092,3590.4,3589.7,0.54127206]
[1732901229948,0.58698017,3590.4,3589.6,1.3786]
[1732901230078,2.78568,3589.8,3589.5,0.505]
[1732901230269,2.78552,3590.0,3589.5,0.505]
[1732901230474,0.0378656,3589.7,3589.5,0.505]
[1732901230669,2.78582,3589.6,3589.5,0.505]
[1732901230881,0.03780955,3589.6,3589.5,0.505]
[1732901231055,2.82362955,3589.6,3589.5,0.505]
[1732901231255,0.03780955,3589.6,3589.5,0.505]
[1732901231661,2.78564,3589.9,3589.5,0.505]
[1732901231856,0.03780855,3589.6,3589.5,0.505]
[1732901232101,2.78582,3589.6,3589.5,0.505]
[1732901232395,2.82358129,3589.6,3589.5,0.505]
[1732901232572,0.03776129,3589.6,3589.5,0.505]
[1732901232767,0.58956421,3589.6,3589.5,0.505]
[1732901232995,0.03776129,3589.6,3589.5,1.7949]
[1732901233160,2.7843,3591.6,3589.5,1.7949]
[1732901233161,2.78553,3590.0,3589.5,1.97439]
[1732901233356,0.03719357,3589.9,3589.5,1.7949]
[1732901233597,2.78576,3589.7,3589.5,1.7949]
[1732901233869,2.78523,3590.4,3589.5,1.7949]
[1732901233870,2.82330037,3589.6,3589.5,1.7949]
[1732901234074,2.82330037,3589.6,3589.5,0.505]
[1732901239795,0.03748037,3589.6,3589.5,0.505]
[1732901240507,2.78567,3589.8,3589.5,0.505]
[1732901240670,0.0378928,3589.6,3589.5,0.505]
[1732901240868,2.78567,3589.8,3589.5,0.505]
[1732901241065,0.03794707,3589.6,3589.5,0.505]
[1732901241322,2.78576,3589.7,3589.5,0.505]
[1732901241472,2.82376707,3589.6,3589.5,0.505]
[1732901242117,0.03794707,3589.6,3589.5,0.505]
[1732901242468,2.78582,3589.6,3589.5,0.505]
[1732901242674,3.72887932,3589.6,3589.5,0.505]
[1732901243010,6.72887932,3589.6,3589.5,0.505]
[1732901243910,3.72887932,3589.6,3589.5,0.505]
[1732901245546,2.82337932,3589.6,3589.5,0.505]
[1732901251100,3.72887932,3589.6,3589.5,0.505]
[1732901251698,2.78667,3588.5,3588.4,1.3071]
[1732901251896,2.78715,3587.9,3587.2,1.3071]
[1732901252145,2.78704,3588.1,3587.4,1.3071]
[1732901252447,2.78685,3588.3,3587.4,1.3071]
[1732901252655,0.03599919,3588.0,3587.4,1.3071]
[1732901252867,2.78654,3588.7,3587.5,0.02786811]
[1732901253028,0.56366372,3588.2,3588.0,1.386]
[1732901253237,2.78629,3589.0,3588.0,1.386]
[1732901253633,2.78652,3588.7,3588.0,1.386]
[1732901254254,2.78629,3589.0,3588.0,1.41386437]
[1732901254461,2.78629,3589.0,3588.1,1.50188644]
[1732901254625,2.78646,3588.8,3588.3,1.3605]
[1732901254955,2.78646,3588.8,3588.4,0.02786398]
[1732901255251,2.78676,3588.4,3587.7,1.2677]
[1732901255451,0.55686251,3588.5,3587.7,1.2677]
[1732901255620,0.0356745,3588.3,3587.7,1.2677]
[1732901255815,2.8225245,3588.3,3587.7,1.2677]
[1732901256521,0.0356745,3588.3,3587.7,1.2677]
[1732901256717,3.34354251,3588.5,3587.8,0.42677]
[1732901256918,2.78677,3588.4,3587.8,0.42677]
[1732901257118,2.82242728,3588.4,3587.8,0.42677]
[1732901257461,0.03565728,3588.4,3587.8,0.42677]
[1732901257757,2.78679,3588.4,3587.8,0.42677]
[1732901258065,0.03578872,3588.3,3587.9,0.55]
[1732901258213,0.03578872,3588.3,3588.1,1.2573]
[1732901258419,2.78654,3588.7,3588.1,1.2573]
[1732901258734,0.03590374,3588.6,3588.1,1.2573]
[1732901259561,0.03590374,3588.6,3588.1,1.961749]
[1732901259759,2.78653,3588.7,3588.1,1.2573]
[1732901259931,2.78673,3588.5,3588.1,1.2573]
[1732901260254,0.03569813,3588.4,3588.1,1.2573]
[1732901260846,2.78684,3588.3,3588.1,1.2573]
[1732901261041,0.03569813,3588.4,3588.1,1.2573]
[1732901261042,2.78691,3588.2,3588.1,1.2573]
[1732901261276,2.82272031,3588.2,3588.1,1.2573]
[1732901262461,2.78699,3588.1,3587.6,1.3375]
[1732901262752,2.78726,3587.8,3587.6,1.3375]
[1732901262952,0.03544839,3587.7,3587.6,1.3375]
[1732901263157,2.78701,3588.1,3587.6,1.3375]
[1732901263359,2.78717,3587.9,3587.6,1.3375]
[1732901263543,2.78746,3587.5,3587.2,1.3329]
[1732901263869,2.78761,3587.3,3587.2,1.3329]
[1732901264364,2.7879,3587.0,3586.7,1.333]
[1732901264518,2.788,3586.8,3586.7,1.333]
[1732901264987,2.78815,3586.6,3585.8,1.3526]
[1732901265266,0.03441633,3586.5,3585.8,1.3526]
[1732901265621,2.82268633,3586.5,3585.9,0.414145]
[1732901265816,2.82268633,3586.5,3585.8,1.3526]
[1732901266018,2.78844,3586.3,3585.8,1.3526]
[1732901266219,0.03446463,3586.2,3585.9,0.52050918]
[1732901266555,2.78777,3587.1,3586.1,2.78854]
[1732901266722,2.78777,3587.1,3586.2,1.59614229]
[1732901266919,2.78763,3587.3,3586.4,1.3145]
[1732901267145,0.5571509,3587.2,3586.6,1.3145]
[1732901267351,0.5571509,3587.2,3584.9,0.29744285]
[1732901267352,0.906,3587.0,3586.1,1.3145]
[1732901267566,2.78823,3586.5,3586.1,1.3145]
[1732901268782,2.78809,3586.7,3586.1,1.3145]
[1732901269452,0.03438082,3586.6,3586.1,1.3145]
[1732901271265,0.03438082,3586.6,3586.2,0.41507146]
[1732901271562,2.78778,3587.1,3586.3,0.17295715]
[1732901271765,0.5571509,3587.2,3586.3,0.17295715]
[1732901271959,2.78778,3587.1,3586.5,1.349]
[1732901272192,2.78792,3586.9,3586.5,1.349]
[1732901272561,0.03327232,3586.8,3586.5,1.349]
[1732901272959,2.82127232,3586.8,3586.5,1.349]
[1732901273215,0.93927232,3586.8,3586.0,1.342]
[1732901273504,2.7882,3586.6,3586.1,0.41503153]
[1732901273670,2.78807,3586.7,3586.0,1.342]
[1732901273877,0.03298805,3586.5,3586.1,0.41501919]
[1732901274190,0.03291546,3586.4,3586.2,0.41501919]
[1732901274392,1.4631509,3587.2,3586.0,1.342]
[1732901274695,2.78802,3586.8,3586.1,0.41496839]
[1732901275003,0.0329822,3586.7,3586.2,0.41496839]
[1732901275186,0.54594446,3586.5,3586.0,1.342]
[1732901275387,0.03279195,3586.4,3586.1,0.41497792]
[1732901275572,0.03279195,3586.4,3586.2,0.41497792]
[1732901275781,0.03279195,3586.4,3586.0,1.342]
[1732901275988,0.03279195,3586.4,3586.1,0.41495984]
[1732901276183,0.03279195,3586.4,3586.0,4.54368]
[1732901276384,0.03279195,3586.4,3586.1,2.78853]
[1732901276790,0.03279195,3586.4,3586.0,1.75507]
[1732901277760,0.03279195,3586.4,3586.0,1.342]
[1732901277976,2.78841,3586.3,3586.0,1.342]
[1732901278266,0.03259445,3586.2,3586.0,1.342]
[1732901278839,0.03266375,3586.1,3585.2,2.78921]
[1732901279006,0.03266375,3586.1,3585.5,3.0]
[1732901279301,0.03266375,3586.1,3585.5,0.578907]
[1732901279599,0.03266375,3586.1,3585.4,2.78907]
[1732901279600,0.03266375,3586.1,3585.1,1.3306]
[1732901279821,0.906,3585.9,3584.6,1.3636]
[1732901279979,2.78926,3585.2,3584.6,1.3636]
[1732901280180,2.78933,3585.1,3584.6,1.3636]
[1732901280502,2.78947,3585.0,3584.6,1.3636]
[1732901280863,2.78947,3585.0,3584.1,2.79005]
[1732901280864,2.78967,3584.7,3584.1,1.3607]
[1732901281065,0.03177325,3584.9,3584.1,1.775801]
[1732901281285,1.4574675,3585.2,3584.1,1.3607]
[1732901281286,0.03146908,3584.6,3584.1,1.3607]
[1732901281571,0.03121751,3584.5,3584.1,1.3607]
[1732901281797,2.78965,3584.7,3584.1,1.3607]
[1732901282106,0.03145523,3584.6,3584.1,1.3607]
[1732901282312,2.82122523,3584.6,3584.1,1.3607]
[1732901282466,2.78979,3584.5,3584.1,1.3607]
[1732901282708,2.78992,3584.4,3583.5,1.3921]
[1732901283020,0.03111647,3584.4,3583.5,4.84261674]
[1732901283204,2.78991,3584.4,3583.5,2.05207674]
[1732901283409,0.03132809,3584.3,3583.5,2.05207674]
[1732901283631,2.82127809,3584.3,3583.5,2.05207674]
[1732901284415,0.03132809,3584.3,3583.5,2.05207674]
[1732901284633,0.1,3586.5,3584.0,1.3491]
[1732901284849,0.906,3585.7,3584.4,4.3491]
[1732901285152,0.03263499,3585.6,3584.5,0.02789156]
[1732901285443,0.906,3585.7,3584.4,1.3491]
[1732901285646,0.03270387,3585.6,3584.5,0.713907]
[1732901285856,0.906,3585.7,3584.6,2.78971]
[1732901286008,0.03287851,3585.6,3584.6,2.78971]
[1732901286403,2.82181851,3585.6,3584.7,2.78962]
[1732901286727,0.55915874,3585.4,3584.8,2.78954]
[1732901286921,0.55915874,3585.4,3584.9,0.278954]
[1732901287141,0.03249172,3585.3,3585.0,1.3809]
[1732901287327,0.03249172,3585.3,3585.1,2.78931]
[1732901287656,0.54749332,3585.5,3585.1,2.78931]
[1732901287822,0.03236955,3585.4,3585.0,1.3809]
[1732901288025,0.03236955,3585.4,3584.7,2.78962]
[1732901288233,2.78937,3585.1,3584.2,1.3809]
[1732901288541,2.78953,3584.9,3584.2,1.3809]
[1732901288727,2.7896,3584.8,3583.9,4.13553]
[1732901288911,2.82105482,3584.8,3583.9,4.59377404]
[1732901289311,0.03145482,3584.8,3583.9,4.59377404]
[1732901289619,2.78942,3585.0,3584.1,2.79009]
[1732901289923,2.82087808,3584.9,3584.1,2.79009]
[1732901290774,0.03139808,3584.9,3584.1,2.79009]
[1732901290944,0.03139808,3584.9,3584.4,2.78986]
[1732901291133,3.69522,3585.3,3584.4,2.78986]
[1732901291334,2.78925,3585.2,3584.4,2.78986]
[1732901291562,0.56363412,3584.7,3584.2,2.78996]
[1732901292133,0.56363412,3584.7,3584.3,2.7899]
[1732901292134,0.03122948,3584.6,3584.3,2.7899]
[1732901292330,0.03122948,3584.6,3584.5,1.392]
[1732901292869,0.03155019,3584.6,3584.3,0.557986]
[1732901293044,0.54934936,3584.9,3584.4,2.78985]
[1732901293239,0.03166258,3584.8,3584.4,2.78985]
[1732901293454,0.03166258,3584.8,3584.5,2.78977]
[1732901293776,0.03166258,3584.8,3584.4,2.78985]
[1732901294133,0.906,3585.6,3584.3,0.55]
[1732901294330,0.906,3585.6,3584.7,2.7896]
[1732901294585,2.82106398,3585.5,3584.7,2.7896]
[1732901294734,0.03203398,3585.5,3584.7,2.7896]
[1732901294930,0.03203398,3585.5,3584.5,2.78976]
[1732901295276,0.03203398,3585.5,3584.7,2.78961]
[1732901295426,2.82107398,3585.5,3584.5,2.78972]
[1732901295634,0.56829691,3585.1,3584.6,2.7897]
[1732901295832,0.03186231,3585.0,3584.6,2.7897]
[1732901296150,0.03186231,3585.0,3584.2,1.392]
[1732901296332,0.03186231,3585.0,3584.4,2.78982]
[1732901296533,0.03186231,3585.0,3584.2,4.18194]
[1732901296878,0.56829691,3585.1,3584.2,2.089209]
[1732901297042,3.69552,3584.9,3584.2,1.392]
[1732901297244,0.0312759,3584.8,3584.2,1.392]
[1732901297570,2.8208359,3584.8,3584.2,1.392]
[1732901299173,0.0312759,3584.8,3584.2,4.18202]
[1732901299349,0.0312759,3584.8,3584.4,2.78981]
[1732901299532,0.0312759,3584.8,3584.5,2.78977]
[1732901299733,0.5469223,3584.9,3584.5,2.78977]
[1732901299934,0.03169376,3584.7,3584.5,3.486947]
[1732901300259,0.0315065,3584.6,3584.5,0.697177]
[1732901300463,0.5469223,3584.9,3584.2,1.392]
[1732901300672,0.03148466,3584.6,3583.9,1.3336]
[1732901300838,3.3364623,3584.9,3584.0,2.79017]
[1732901301037,2.82117889,3584.8,3584.0,2.79017]
[1732901301861,0.03161889,3584.8,3584.1,2.79008]
[1732901302062,0.03161889,3584.8,3584.1,3.202418]
[1732901302235,0.03161889,3584.8,3584.2,2.79001]
[1732901303269,0.03161889,3584.8,3584.1,0.412368]
[1732901303479,0.03161889,3584.8,3584.2,2.79001]
[1732901303838,0.03161889,3584.8,3584.1,3.202448]
[1732901304039,0.03161889,3584.8,3584.2,0.7605068]
[1732901304249,0.03161889,3584.8,3584.4,2.78979]
[1732901304769,0.03161889,3584.8,3584.5,2.78977]
[1732901304956,0.03161889,3584.8,3584.2,3.34]
[1732901305176,0.03161889,3584.8,3584.2,2.79]
[1732901306385,0.03161889,3584.8,3584.3,2.78994]
[1732901306577,0.03161889,3584.8,3584.4,0.5992308]
[1732901306790,0.03161889,3584.8,3584.3,2.78994]
[1732901307135,0.03161889,3584.8,3584.1,3.202458]
[1732901307335,0.03161889,3584.8,3584.1,0.412368]
[1732901307651,3.3364423,3584.9,3584.1,2.79008]
[1732901307851,0.03086913,3584.8,3584.1,2.79008]
[1732901308060,0.03086913,3584.8,3584.0,2.79016]
[1732901308061,2.78965,3584.7,3584.0,2.79016]
[1732901308282,2.78984,3584.5,3583.9,0.2788]
[1732901308470,2.79014,3584.1,3583.4,1.2939]
[1732901308783,2.79019,3584.0,3583.4,1.2939]
[1732901308945,2.82060935,3584.0,3583.4,1.2939]
[1732901309145,2.79026,3583.9,3583.3,2.41702742]
[1732901309380,2.79034,3583.8,3583.3,2.41702742]
[1732901309585,0.03030687,3583.8,3583.3,2.41702742]
[1732901310653,0.03030687,3583.8,3583.3,3.38365016]
[1732901311041,2.82064687,3583.8,3583.3,3.38365016]
[1732901311391,0.03030687,3583.8,3583.3,3.38365016]
[1732901311683,2.79026,3583.9,3583.3,3.38365016]
[1732901311984,0.0302617,3583.7,3583.3,3.38365016]
[1732901312157,0.591498,3583.8,3583.3,3.38365016]
[1732901312357,0.591498,3583.8,3583.3,2.41702742]
[1732901312358,0.56118006,3583.8,3583.3,2.41702742]
[1732901312570,3.35153006,3583.8,3583.3,2.41702742]
[1732901312785,0.02915346,3583.7,3583.3,2.41702742]
[1732901312988,3.35153006,3583.8,3583.3,2.41702742]
[1732901313361,0.02915245,3583.7,3583.3,2.41702742]
[1732901313559,0.56118006,3583.8,3583.3,2.41702742]
[1732901313860,0.56118006,3583.8,3583.3,5.20768742]
[1732901313861,0.02906169,3583.7,3583.3,5.20768742]
[1732901314065,0.56118006,3583.8,3583.3,2.41702742]
[1732901314264,0.02899636,3583.6,3583.3,5.20773742]
[1732901314601,0.02894011,3583.5,3583.3,5.20773742]
[1732901314809,0.9191,3584.0,3583.3,5.20769742]
[1732901315005,2.7901,3584.1,3583.4,1.3151]
[1732901315303,3.70911,3584.3,3583.3,5.72846716]
[1732901315304,2.79038,3583.8,3583.3,2.41702742]
[1732901315616,2.81947563,3583.7,3583.3,2.41702742]
[1732901316115,0.02905563,3583.7,3583.3,2.41702742]
[1732901316434,2.79031,3583.9,3583.3,2.41702742]
[1732901316558,0.56035685,3584.0,3583.3,5.20770742]
[1732901316758,0.56035685,3584.0,3583.4,3.59048974]
[1732901316980,0.0291661,3583.9,3583.4,3.59048974]
[1732901318663,0.0291661,3583.9,3583.4,0.79984974]
[1732901319206,2.79038,3583.8,3583.3,2.41702742]
[1732901319566,2.79043,3583.7,3583.3,2.41702742]
[1732901319985,0.02917788,3583.6,3583.3,2.41702742]
[1732901320611,0.56035685,3584.0,3583.3,2.41702742]
[1732901320815,0.02899041,3583.5,3583.3,2.41702742]
[1732901321027,0.56035685,3584.0,3583.4,0.24170274]
[1732901321522,3.35054685,3584.0,3583.3,2.41702742]
[1732901322108,0.9191,3583.9,3583.3,2.41702742]
[1732901322512,0.0292315,3583.8,3583.3,2.41702742]
[1732901322686,0.0292315,3583.8,3583.4,2.79062]
[1732901322890,0.56035685,3584.0,3583.4,2.79062]
[1732901323091,0.02921899,3583.7,3583.3,2.41702742]
[1732901323294,3.35053685,3584.0,3583.3,6.02847416]
[1732901323628,0.56035685,3584.0,3583.4,2.79063]
[1732901323829,0.02933147,3583.9,3583.3,6.02847416]
[1732901325534,0.02933147,3583.9,3583.3,3.23780416]
[1732901325688,2.81960147,3583.9,3583.3,3.23780416]
[1732901325895,0.02933147,3583.9,3583.4,2.79061]
[1732901326228,0.02933147,3583.9,3583.6,4.06248]
[1732901326731,0.02933147,3583.9,3583.6,1.272]
[1732901327029,0.56035685,3584.0,3583.6,1.272]
[1732901327239,0.0293355,3583.9,3583.6,1.272]
[1732901327825,0.0293355,3583.9,3583.7,0.26072039]
[1732901328022,0.0293355,3583.9,3583.6,1.272]
[1732901328749,0.0293355,3583.9,3583.8,2.79033]
[1732901329118,0.56035685,3584.0,3583.8,2.79033]
[1732901329721,0.02920429,3583.9,3583.8,2.79033]
[1732901330013,0.56035685,3584.0,3583.8,2.79033]
[1732901330201,0.02920429,3583.9,3583.8,2.79033]
[1732901330406,0.56035685,3584.0,3583.8,1.07563931]
[1732901330727,0.56035685,3584.0,3583.7,2.80629048]
[1732901331039,0.02920429,3583.9,3583.7,2.80629048]
[1732901331198,0.02920429,3583.9,3583.6,1.272]
[1732901331400,0.02920429,3583.9,3583.4,5.79061]
[1732901331801,2.81946429,3583.9,3583.4,3.0]
[1732901332115,2.81946429,3583.9,3583.3,5.2233179]
[1732901332316,0.02920429,3583.9,3583.3,9.22776769]
[1732901332639,0.02920429,3583.9,3583.3,6.43708769]
[1732901332809,0.02920429,3583.9,3583.3,5.2233179]
[1732901332810,2.79037,3583.8,3583.3,5.2233179]
[1732901333143,2.81947857,3583.7,3583.3,2.41702742]
[1732901334200,0.02904857,3583.7,3583.3,2.41702742]
[1732901334395,2.79028,3583.9,3583.3,2.41702742]
[1732901334652,3.35053685,3584.0,3583.4,2.81853295]
[1732901334951,0.02916105,3583.9,3583.5,1.3588]
[1732901335115,0.02916105,3583.9,3583.6,2.79047]
[1732901335299,0.02916105,3583.9,3583.8,2.79033]
[1732901335506,3.71404,3584.3,3583.7,5.59669048]
[1732901335701,0.02916105,3583.9,3583.7,5.59669048]
[1732901335907,4.26947768,3584.3,3583.8,0.97459605]
[1732901336123,0.02910785,3583.8,3583.7,2.80629048]
[1732901336305,4.26947768,3584.3,3583.7,2.80629048]
[1732901336501,0.02910785,3583.8,3583.7,2.80629048]
[1732901336736,4.26947768,3584.3,3583.7,5.59670048]
[1732901337248,0.02933279,3584.2,3583.7,5.59670048]
[1732901337554,0.02933279,3584.2,3583.7,6.67963794]
[1732901337718,0.02933279,3584.2,3583.8,2.79032]
[1732901337924,0.02933279,3584.2,3583.7,1.08293746]
[1732901338119,3.34542768,3584.3,3583.3,8.0140079]
[1732901338120,2.79027,3583.9,3583.3,5.20771742]
[1732901338444,0.02813049,3583.8,3583.3,2.41702742]
[1732901339252,0.02813049,3583.8,3583.4,0.02790221]
[1732901339446,0.9241,3584.1,3583.4,2.81853221]
[1732901339609,0.02824296,3584.0,3583.6,2.79047]
[1732901339940,2.79002,3584.2,3583.6,2.79047]
[1732901340449,0.0282992,3584.1,3583.7,0.41805357]
[1732901340745,0.0282992,3584.1,3583.8,0.41805357]
[1732901340951,0.0282992,3584.1,3583.9,0.41805357]
[1732901341150,0.0282992,3584.1,3583.6,2.79047]
[1732901341353,0.0282992,3584.1,3583.7,0.41803775]
[1732901341561,0.0282992,3584.1,3583.8,0.41803775]
[1732901341722,0.0282992,3584.1,3583.9,0.41803775]
[1732901342047,0.0282992,3584.1,3584.0,0.41803775]
[1732901342248,3.34539768,3584.3,3584.0,0.41803775]
[1732901342402,0.02835543,3584.2,3584.1,0.41803775]